[Event "Titled Tuesday Blitz May 23 Early 2023"]
[White "Lesbekova, Assel"]
[Black "Fiedorek, Michal"]
[WhiteFideId "13713248"]
[BlackFideId "1199528"]
[WhiteElo "1805"]
[BlackElo "2135"]
[Result "1-0"]
[Round "07"]
[TimeControl "180+2"]
[Date "2023.05.23"]
[WhiteClock "0:00:16"]
[BlackClock "0:00:00"]

1. e4 {[%clk 0:02:49]}  c5 {[%clk 0:02:59]} 2. Nf3 {[%clk 0:02:48]}  Nc6 {[%clk 0:02:58]} 3. Bb5 {[%clk 0:02:48]}  g6 {[%clk 0:02:57]} 4. O-O {[%clk 0:02:45]}  Bg7 {[%clk 0:02:57]} 5. Re1 {[%clk 0:02:46]}  e5 {[%clk 0:02:54]} 6. c3 {[%clk 0:02:44]}  Nge7 {[%clk 0:02:52]} 7. Na3 {[%clk 0:02:42]}  O-O {[%clk 0:02:50]} 8. Nc2 {[%clk 0:02:40]}  d5 {[%clk 0:02:33]} 9. exd5 {[%clk 0:02:37]}  Qxd5 {[%clk 0:02:31]} 10. Ne3 {[%clk 0:02:18]}  Qd8 {[%clk 0:02:25]} 11. Nc4 {[%clk 0:02:00]}  Bg4 {[%clk 0:02:11]} 12. h3 {[%clk 0:01:57]}  Bxf3 {[%clk 0:02:09]} 13. Qxf3 {[%clk 0:01:58]}  a6 {[%clk 0:02:08]} 14. Bxc6 {[%clk 0:01:34]}  Nxc6 {[%clk 0:02:08]} 15. b3 {[%clk 0:01:24]}  Qc7 {[%clk 0:02:08]} 16. Ba3 {[%clk 0:01:23]}  b5 {[%clk 0:02:01]} 17. Bxc5 {[%clk 0:01:21]}  bxc4 {[%clk 0:01:46]} 18. Bxf8 {[%clk 0:01:18]}  Rxf8 {[%clk 0:01:46]} 19. bxc4 {[%clk 0:01:19]}  Rd8 {[%clk 0:01:42]} 20. d3 {[%clk 0:01:17]}  e4 {[%clk 0:01:16]} 21. dxe4 {[%clk 0:01:05]}  Ne5 {[%clk 0:01:14]} 22. Qe2 {[%clk 0:01:04]}  Nxc4 {[%clk 0:01:07]} 23. Red1 {[%clk 0:01:03]}  Rc8 {[%clk 0:01:02]} 24. Rac1 {[%clk 0:01:00]}  h5 {[%clk 0:01:00]} 25. g3 {[%clk 0:00:47]}  h4 {[%clk 0:00:56]} 26. gxh4 {[%clk 0:00:47]}  Qf4 {[%clk 0:00:56]} 27. Qg4 {[%clk 0:00:45]}  Qc7 {[%clk 0:00:46]} 28. Qd7 {[%clk 0:00:42]}  Qc5 {[%clk 0:00:42]} 29. Rd5 {[%clk 0:00:39]}  Qc6 {[%clk 0:00:36]} 30. Rb1 {[%clk 0:00:36]}  Qxd7 {[%clk 0:00:32]} 31. Rxd7 {[%clk 0:00:37]}  Bxc3 {[%clk 0:00:29]} 32. Rbb7 {[%clk 0:00:37]}  Ne5 {[%clk 0:00:27]} 33. Rdc7 {[%clk 0:00:37]}  Rxc7 {[%clk 0:00:26]} 34. Rxc7 {[%clk 0:00:38]}  Bd4 {[%clk 0:00:20]} 35. Kf1 {[%clk 0:00:34]}  Nf3 {[%clk 0:00:18]} 36. h5 {[%clk 0:00:32]}  gxh5 {[%clk 0:00:17]} 37. Ke2 {[%clk 0:00:30]}  Ne5 {[%clk 0:00:15]} 38. f4 {[%clk 0:00:31]}  Ng6 {[%clk 0:00:14]} 39. Kf3 {[%clk 0:00:31]}  a5 {[%clk 0:00:12]} 40. e5 {[%clk 0:00:26]}  Kf8 {[%clk 0:00:11]} 41. Ke4 {[%clk 0:00:26]}  Bb2 {[%clk 0:00:10]} 42. a4 {[%clk 0:00:21]}  Ke8 {[%clk 0:00:09]} 43. Rc5 {[%clk 0:00:20]}  Ba3 {[%clk 0:00:08]} 44. Rxa5 {[%clk 0:00:20]}  h4 {[%clk 0:00:07]} 45. Ra7 {[%clk 0:00:20]}  Bb4 {[%clk 0:00:06]} 46. a5 {[%clk 0:00:20]}  Ne7 {[%clk 0:00:06]} 47. a6 {[%clk 0:00:20]}  Bc5 {[%clk 0:00:05]} 48. Rc7 {[%clk 0:00:18]}  Bb6 {[%clk 0:00:00]} 49. a7 {[%clk 0:00:16]} 1-0


[Site "https://www.chess.com"]

[Event "Titled Tuesday Blitz May 23 Early 2023"]
[White "Nissinen, Niilo Man"]
[Black "Mrudul Dehankar"]
[WhiteFideId "30950767"]
[BlackFideId "25096990"]
[WhiteElo "1952"]
[BlackElo "2139"]
[Result "0-1"]
[Round "07"]
[TimeControl "180+2"]
[Date "2023.05.23"]
[WhiteClock "0:01:14"]
[BlackClock "0:00:04"]

1. e4 {[%clk 0:02:59]}  c6 {[%clk 0:02:52]} 2. d4 {[%clk 0:02:53]}  d5 {[%clk 0:02:29]} 3. Nd2 {[%clk 0:02:53]}  dxe4 {[%clk 0:02:28]} 4. Nxe4 {[%clk 0:02:54]}  Nf6 {[%clk 0:02:19]} 5. Nxf6+ {[%clk 0:02:53]}  exf6 {[%clk 0:02:17]} 6. c3 {[%clk 0:02:48]}  Bd6 {[%clk 0:02:13]} 7. Bd3 {[%clk 0:02:48]}  O-O {[%clk 0:02:06]} 8. Qc2 {[%clk 0:02:48]}  Re8+ {[%clk 0:02:02]} 9. Ne2 {[%clk 0:02:48]}  h5 {[%clk 0:02:02]} 10. O-O {[%clk 0:02:48]}  h4 {[%clk 0:01:56]} 11. h3 {[%clk 0:02:48]}  Nd7 {[%clk 0:01:55]} 12. Bf4 {[%clk 0:02:44]}  Nf8 {[%clk 0:01:51]} 13. Bxd6 {[%clk 0:02:42]}  Qxd6 {[%clk 0:01:47]} 14. c4 {[%clk 0:02:42]}  Ng6 {[%clk 0:01:38]} 15. Rad1 {[%clk 0:02:36]}  f5 {[%clk 0:01:20]} 16. Rfe1 {[%clk 0:02:19]}  Qf6 {[%clk 0:00:57]} 17. d5 {[%clk 0:02:07]}  cxd5 {[%clk 0:00:38]} 18. cxd5 {[%clk 0:02:07]}  Bd7 {[%clk 0:00:38]} 19. Qc3 {[%clk 0:01:57]}  Ne5 {[%clk 0:00:23]} 20. Bb1 {[%clk 0:01:46]}  Rac8 {[%clk 0:00:20]} 21. Qb3 {[%clk 0:01:43]}  Ng6 {[%clk 0:00:16]} 22. Qxb7 {[%clk 0:01:37]}  Re7 {[%clk 0:00:11]} 23. Nd4 {[%clk 0:01:28]}  Rce8 {[%clk 0:00:08]} 24. Rxe7 {[%clk 0:01:24]}  Rxe7 {[%clk 0:00:06]} 25. Nf3 {[%clk 0:01:24]}  Ba4 {[%clk 0:00:04]} 26. Qb8+ {[%clk 0:01:21]}  Kh7 {[%clk 0:00:03]} 27. b3 {[%clk 0:01:20]}  Bd7 {[%clk 0:00:03]} 28. Qf4 {[%clk 0:01:20]}  Nxf4 {[%clk 0:00:03]} 29. d6 {[%clk 0:01:18]}  Qg6 {[%clk 0:00:03]} 30. Nxh4 {[%clk 0:01:16]}  Qh5 {[%clk 0:00:03]} 31. dxe7 {[%clk 0:01:16]}  Qxd1+ {[%clk 0:00:03]} 32. Kh2 {[%clk 0:01:15]}  Qxb1 {[%clk 0:00:04]} 33. g3 {[%clk 0:01:15]}  Nd3 {[%clk 0:00:03]} 34. Kg2 {[%clk 0:01:15]}  Qc2 {[%clk 0:00:04]} 35. Nxf5 {[%clk 0:01:13]}  Qxf2+ {[%clk 0:00:04]} 36. Kh1 {[%clk 0:01:14]}  Bc6# {[%clk 0:00:04]} 0-1


[Site "https://www.chess.com"]

[Event "Titled Tuesday Blitz May 23 Early 2023"]
[White "Gatterer, Florian"]
[Black "Bashirli, Saadat"]
[WhiteFideId "811688"]
[BlackFideId "13429990"]
[WhiteElo "2221"]
[BlackElo "1408"]
[Result "1-0"]
[Round "07"]
[TimeControl "180+2"]
[Date "2023.05.23"]
[WhiteClock "0:00:32"]
[BlackClock "0:00:00"]

1. e4 {[%clk 0:03:00]}  c6 {[%clk 0:02:57]} 2. d4 {[%clk 0:02:59]}  d5 {[%clk 0:02:57]} 3. e5 {[%clk 0:03:00]}  g6 {[%clk 0:02:57]} 4. h3 {[%clk 0:02:57]}  Bg7 {[%clk 0:02:57]} 5. Bd3 {[%clk 0:02:56]}  f5 {[%clk 0:02:54]} 6. Nf3 {[%clk 0:02:53]}  Nh6 {[%clk 0:02:48]} 7. O-O {[%clk 0:02:51]}  Nf7 {[%clk 0:02:47]} 8. Re1 {[%clk 0:02:51]}  e6 {[%clk 0:02:47]} 9. b4 {[%clk 0:02:48]}  a6 {[%clk 0:02:41]} 10. a4 {[%clk 0:02:48]}  Nd7 {[%clk 0:02:37]} 11. Na3 {[%clk 0:02:41]}  O-O {[%clk 0:02:33]} 12. c3 {[%clk 0:02:42]}  b5 {[%clk 0:02:24]} 13. Nc2 {[%clk 0:02:32]}  Bb7 {[%clk 0:02:18]} 14. g3 {[%clk 0:02:26]}  Nb6 {[%clk 0:02:08]} 15. a5 {[%clk 0:02:16]}  Na4 {[%clk 0:01:58]} 16. Bd2 {[%clk 0:01:52]}  Nb2 {[%clk 0:01:57]} 17. Qe2 {[%clk 0:01:51]}  Nxd3 {[%clk 0:01:53]} 18. Qxd3 {[%clk 0:01:50]}  Re8 {[%clk 0:01:39]} 19. Rad1 {[%clk 0:01:50]}  Qc7 {[%clk 0:01:38]} 20. Na1 {[%clk 0:01:48]}  Rad8 {[%clk 0:01:34]} 21. Nb3 {[%clk 0:01:47]}  Bf8 {[%clk 0:01:35]} 22. Ng5 {[%clk 0:01:43]}  Nxg5 {[%clk 0:01:31]} 23. Bxg5 {[%clk 0:01:42]}  Rd7 {[%clk 0:01:30]} 24. Qd2 {[%clk 0:01:41]}  Bc8 {[%clk 0:01:21]} 25. Kg2 {[%clk 0:01:39]}  Rf7 {[%clk 0:01:18]} 26. Rh1 {[%clk 0:01:33]}  Bb7 {[%clk 0:01:01]} 27. Rde1 {[%clk 0:01:32]}  h5 {[%clk 0:00:31]} 28. f3 {[%clk 0:01:21]}  Rh7 {[%clk 0:00:30]} 29. g4 {[%clk 0:01:18]}  hxg4 {[%clk 0:00:23]} 30. hxg4 {[%clk 0:01:17]}  Bg7 {[%clk 0:00:20]} 31. Rxh7 {[%clk 0:01:12]}  Kxh7 {[%clk 0:00:21]} 32. Rh1+ {[%clk 0:01:12]}  Kg8 {[%clk 0:00:21]} 33. Nc5 {[%clk 0:01:10]}  Bc8 {[%clk 0:00:21]} 34. Bf6 {[%clk 0:01:04]}  Qf7 {[%clk 0:00:17]} 35. Qg5 {[%clk 0:00:55]}  Rf8 {[%clk 0:00:13]} 36. Qh4 {[%clk 0:00:54]}  Re8 {[%clk 0:00:02]} 37. Nd3 {[%clk 0:00:51]}  Kf8 {[%clk 0:00:01]} 38. Nf4 {[%clk 0:00:34]}  Rd8 {[%clk 0:00:00]} 39. Qh7 {[%clk 0:00:32]} 1-0


[Site "https://www.chess.com"]

[Event "Titled Tuesday Blitz May 23 Early 2023"]
[White "Petrova, Irina"]
[Black "Rosh Jain"]
[WhiteFideId "14124122"]
[BlackFideId "25789465"]
[WhiteElo "2084"]
[BlackElo "2233"]
[Result "0-1"]
[Round "07"]
[TimeControl "180+2"]
[Date "2023.05.23"]
[WhiteClock "0:00:05"]
[BlackClock "0:01:32"]

1. e4 {[%clk 0:03:00]}  c5 {[%clk 0:02:59]} 2. Nf3 {[%clk 0:03:00]}  d6 {[%clk 0:02:59]} 3. Bb5+ {[%clk 0:03:00]}  Nd7 {[%clk 0:02:58]} 4. O-O {[%clk 0:03:00]}  Nf6 {[%clk 0:02:56]} 5. Re1 {[%clk 0:03:00]}  a6 {[%clk 0:02:56]} 6. Bf1 {[%clk 0:03:00]}  g6 {[%clk 0:02:56]} 7. c3 {[%clk 0:02:56]}  Bg7 {[%clk 0:02:52]} 8. d4 {[%clk 0:02:56]}  cxd4 {[%clk 0:02:52]} 9. cxd4 {[%clk 0:02:57]}  e5 {[%clk 0:02:52]} 10. d5 {[%clk 0:02:56]}  O-O {[%clk 0:02:51]} 11. Nc3 {[%clk 0:02:29]}  b5 {[%clk 0:02:51]} 12. a3 {[%clk 0:02:24]}  Nb6 {[%clk 0:02:46]} 13. h3 {[%clk 0:02:13]}  Ne8 {[%clk 0:02:35]} 14. Nd2 {[%clk 0:01:33]}  f5 {[%clk 0:02:33]} 15. f3 {[%clk 0:01:29]}  f4 {[%clk 0:02:32]} 16. Nb3 {[%clk 0:01:21]}  g5 {[%clk 0:02:30]} 17. Na5 {[%clk 0:01:19]}  Bd7 {[%clk 0:02:28]} 18. Bd2 {[%clk 0:01:07]}  h5 {[%clk 0:02:27]} 19. Rc1 {[%clk 0:01:04]}  Nf6 {[%clk 0:02:25]} 20. Na2 {[%clk 0:01:00]}  g4 {[%clk 0:02:18]} 21. hxg4 {[%clk 0:00:57]}  hxg4 {[%clk 0:02:19]} 22. Nc6 {[%clk 0:00:54]}  Bxc6 {[%clk 0:02:19]} 23. Rxc6 {[%clk 0:00:54]}  g3 {[%clk 0:02:19]} 24. Ba5 {[%clk 0:00:45]}  Nfd7 {[%clk 0:01:59]} 25. Bd3 {[%clk 0:00:40]}  Qh4 {[%clk 0:01:38]} 26. Bxb6 {[%clk 0:00:39]}  Nxb6 {[%clk 0:01:36]} 27. Bb1 {[%clk 0:00:21]}  Qh2+ {[%clk 0:01:35]} 28. Kf1 {[%clk 0:00:21]}  Qh1+ {[%clk 0:01:36]} 29. Ke2 {[%clk 0:00:22]}  Qxg2+ {[%clk 0:01:37]} 30. Kd3 {[%clk 0:00:22]}  Nc4 {[%clk 0:01:37]} 31. Rxc4 {[%clk 0:00:16]}  bxc4+ {[%clk 0:01:38]} 32. Kc3 {[%clk 0:00:16]}  a5 {[%clk 0:01:35]} 33. Rg1 {[%clk 0:00:14]}  Qf2 {[%clk 0:01:35]} 34. Rh1 {[%clk 0:00:14]}  Rab8 {[%clk 0:01:34]} 35. Bc2 {[%clk 0:00:05]}  Qe3+ {[%clk 0:01:32]} 0-1


[Site "https://www.chess.com"]

[Event "Titled Tuesday Blitz May 23 Early 2023"]
[White "Davidson, Kevin"]
[Black "Ruge, Edison"]
[WhiteFideId "2056810"]
[BlackFideId "4401000"]
[WhiteElo "2151"]
[BlackElo "2175"]
[Result "1-0"]
[Round "07"]
[TimeControl "180+2"]
[Date "2023.05.23"]
[WhiteClock "0:00:02"]
[BlackClock "0:00:00"]

1. e4 {[%clk 0:03:00]}  e5 {[%clk 0:02:57]} 2. Nf3 {[%clk 0:03:01]}  Nc6 {[%clk 0:02:57]} 3. Bb5 {[%clk 0:03:00]}  f5 {[%clk 0:02:55]} 4. Nc3 {[%clk 0:03:00]}  fxe4 {[%clk 0:02:55]} 5. Nxe4 {[%clk 0:03:00]}  Nf6 {[%clk 0:02:55]} 6. Nxf6+ {[%clk 0:03:01]}  Qxf6 {[%clk 0:02:54]} 7. Qe2 {[%clk 0:03:01]}  Be7 {[%clk 0:02:54]} 8. Bxc6 {[%clk 0:03:01]}  dxc6 {[%clk 0:02:54]} 9. Nxe5 {[%clk 0:03:01]}  O-O {[%clk 0:02:54]} 10. O-O {[%clk 0:03:02]}  Bd6 {[%clk 0:02:53]} 11. f4 {[%clk 0:03:00]}  Bf5 {[%clk 0:02:50]} 12. d3 {[%clk 0:03:00]}  Rae8 {[%clk 0:02:49]} 13. Re1 {[%clk 0:03:00]}  c5 {[%clk 0:02:26]} 14. Bd2 {[%clk 0:02:55]}  Bxe5 {[%clk 0:02:21]} 15. fxe5 {[%clk 0:02:53]}  Qe6 {[%clk 0:02:21]} 16. Bc3 {[%clk 0:02:43]}  Bg6 {[%clk 0:02:20]} 17. b3 {[%clk 0:02:34]}  b6 {[%clk 0:02:11]} 18. a4 {[%clk 0:02:29]}  Rf5 {[%clk 0:02:02]} 19. Rf1 {[%clk 0:02:15]}  Ref8 {[%clk 0:02:01]} 20. Rxf5 {[%clk 0:02:12]}  Rxf5 {[%clk 0:01:59]} 21. Re1 {[%clk 0:02:11]}  h5 {[%clk 0:01:57]} 22. Qe3 {[%clk 0:02:00]}  Be8 {[%clk 0:01:52]} 23. Qg3 {[%clk 0:01:49]}  Bc6 {[%clk 0:01:51]} 24. Qh4 {[%clk 0:01:32]}  Kh7 {[%clk 0:01:38]} 25. h3 {[%clk 0:01:10]}  Qg6 {[%clk 0:01:35]} 26. Re2 {[%clk 0:00:59]}  Rg5 {[%clk 0:01:34]} 27. g4 {[%clk 0:00:38]}  Kg8 {[%clk 0:01:30]} 28. Bd2 {[%clk 0:00:35]}  Rf5 {[%clk 0:01:23]} 29. e6 {[%clk 0:00:25]}  Rf8 {[%clk 0:01:13]} 30. e7 {[%clk 0:00:16]}  Re8 {[%clk 0:01:08]} 31. Qxh5 {[%clk 0:00:16]}  Qxh5 {[%clk 0:01:07]} 32. gxh5 {[%clk 0:00:16]}  Kf7 {[%clk 0:01:08]} 33. Bg5 {[%clk 0:00:15]}  Bd5 {[%clk 0:01:02]} 34. Re5 {[%clk 0:00:14]}  Be6 {[%clk 0:01:00]} 35. Kh2 {[%clk 0:00:11]}  c6 {[%clk 0:01:00]} 36. Kg3 {[%clk 0:00:11]}  Rh8 {[%clk 0:00:57]} 37. Bh4 {[%clk 0:00:10]}  Bd7 {[%clk 0:00:56]} 38. Kf4 {[%clk 0:00:08]}  Be8 {[%clk 0:00:51]} 39. Kg3 {[%clk 0:00:08]}  Kg8 {[%clk 0:00:50]} 40. Rf5 {[%clk 0:00:07]}  Bxh5 {[%clk 0:00:42]} 41. Rf8+ {[%clk 0:00:06]}  Kh7 {[%clk 0:00:43]} 42. Kf4 {[%clk 0:00:05]}  Be8 {[%clk 0:00:42]} 43. Bg5 {[%clk 0:00:04]}  g6 {[%clk 0:00:40]} 44. Bf6 {[%clk 0:00:04]}  Rg8 {[%clk 0:00:41]} 45. Kg5 {[%clk 0:00:03]}  Bd7 {[%clk 0:00:37]} 46. h4 {[%clk 0:00:04]}  Be8 {[%clk 0:00:34]} 47. Be5 {[%clk 0:00:03]}  Bd7 {[%clk 0:00:34]} 48. c3 {[%clk 0:00:02]}  a6 {[%clk 0:00:34]} 49. Bc7 {[%clk 0:00:01]}  b5 {[%clk 0:00:33]} 50. a5 {[%clk 0:00:02]}  Kg7 {[%clk 0:00:30]} 51. Be5+ {[%clk 0:00:02]}  Kh7 {[%clk 0:00:29]} 52. Bd6 {[%clk 0:00:02]}  c4 {[%clk 0:00:28]} 53. bxc4 {[%clk 0:00:01]}  bxc4 {[%clk 0:00:28]} 54. d4 {[%clk 0:00:01]}  Kg7 {[%clk 0:00:27]} 55. Be5+ {[%clk 0:00:01]}  Kh7 {[%clk 0:00:28]} 56. Kf6 {[%clk 0:00:01]}  Be8 {[%clk 0:00:25]} 57. Ke6 {[%clk 0:00:01]}  g5 {[%clk 0:00:17]} 58. hxg5 {[%clk 0:00:02]}  Rg6+ {[%clk 0:00:17]} 59. Kf5 {[%clk 0:00:01]}  Rg8 {[%clk 0:00:17]} 60. Ke4 {[%clk 0:00:01]}  Bg6+ {[%clk 0:00:13]} 61. Ke3 {[%clk 0:00:01]}  Be8 {[%clk 0:00:14]} 62. Kd2 {[%clk 0:00:01]}  Bd7 {[%clk 0:00:12]} 63. Kc1 {[%clk 0:00:01]}  Rxg5 {[%clk 0:00:10]} 64. e8=Q {[%clk 0:00:01]}  Bxe8 {[%clk 0:00:10]} 65. Rxe8 {[%clk 0:00:02]}  Rg2 {[%clk 0:00:10]} 66. Kb1 {[%clk 0:00:02]}  Rd2 {[%clk 0:00:07]} 67. Re6 {[%clk 0:00:02]}  Rd3 {[%clk 0:00:03]} 68. Rxc6 {[%clk 0:00:02]}  Rxc3 {[%clk 0:00:02]} 69. Rxa6 {[%clk 0:00:02]}  Rb3+ {[%clk 0:00:00]} 70. Kc2 {[%clk 0:00:02]} 1-0


[Site "https://www.chess.com"]

[Event "Titled Tuesday Blitz May 23 Early 2023"]
[White "Guevara Sanchez, Erick Marvin"]
[Black "Kabilov, Amin"]
[WhiteFideId "6700136"]
[BlackFideId "14700859"]
[WhiteElo "2040"]
[BlackElo "2110"]
[Result "0-1"]
[Round "07"]
[TimeControl "180+2"]
[Date "2023.05.23"]
[WhiteClock "0:00:01"]
[BlackClock "0:00:13"]

1. e4 {[%clk 0:03:00]}  e5 {[%clk 0:02:56]} 2. Nf3 {[%clk 0:03:00]}  d6 {[%clk 0:02:57]} 3. d4 {[%clk 0:02:58]}  exd4 {[%clk 0:02:57]} 4. Nxd4 {[%clk 0:02:59]}  Nf6 {[%clk 0:02:58]} 5. Nc3 {[%clk 0:02:59]}  Be7 {[%clk 0:02:59]} 6. Bc4 {[%clk 0:02:58]}  O-O {[%clk 0:02:58]} 7. O-O {[%clk 0:02:58]}  Nxe4 {[%clk 0:02:58]} 8. Nxe4 {[%clk 0:02:52]}  d5 {[%clk 0:02:59]} 9. Bd3 {[%clk 0:02:52]}  dxe4 {[%clk 0:02:59]} 10. Bxe4 {[%clk 0:02:53]}  Nd7 {[%clk 0:02:58]} 11. Qf3 {[%clk 0:02:41]}  Ne5 {[%clk 0:02:49]} 12. Qh5 {[%clk 0:02:19]}  Ng6 {[%clk 0:01:42]} 13. Be3 {[%clk 0:02:12]}  Bd6 {[%clk 0:01:38]} 14. Nf5 {[%clk 0:02:09]}  Bxf5 {[%clk 0:01:36]} 15. Bxf5 {[%clk 0:02:09]}  Re8 {[%clk 0:01:35]} 16. Rad1 {[%clk 0:01:59]}  Qf6 {[%clk 0:01:32]} 17. c3 {[%clk 0:01:49]}  Re5 {[%clk 0:01:23]} 18. g4 {[%clk 0:01:42]}  Bc5 {[%clk 0:01:22]} 19. Bxc5 {[%clk 0:01:38]}  Rxc5 {[%clk 0:01:21]} 20. Qh3 {[%clk 0:01:37]}  Qg5 {[%clk 0:01:16]} 21. f4 {[%clk 0:01:31]}  Qf6 {[%clk 0:00:55]} 22. Bb1 {[%clk 0:01:30]}  h6 {[%clk 0:00:50]} 23. f5 {[%clk 0:01:12]}  Ne5 {[%clk 0:00:47]} 24. Rfe1 {[%clk 0:01:09]}  Re8 {[%clk 0:00:41]} 25. Qg3 {[%clk 0:00:57]}  a5 {[%clk 0:00:30]} 26. h4 {[%clk 0:00:48]}  Qb6 {[%clk 0:00:30]} 27. Kh1 {[%clk 0:00:40]}  Qxb2 {[%clk 0:00:30]} 28. Be4 {[%clk 0:00:27]}  Rxc3 {[%clk 0:00:29]} 29. Qf4 {[%clk 0:00:23]}  Rh3+ {[%clk 0:00:26]} 30. Kg1 {[%clk 0:00:20]}  Rxh4 {[%clk 0:00:21]} 31. Bd5 {[%clk 0:00:15]}  Rxg4+ {[%clk 0:00:12]} 32. Qxg4 {[%clk 0:00:13]}  Nxg4 {[%clk 0:00:13]} 33. Rxe8+ {[%clk 0:00:14]}  Kh7 {[%clk 0:00:13]} 34. Bg2 {[%clk 0:00:11]}  Qf2+ {[%clk 0:00:13]} 35. Kh1 {[%clk 0:00:11]}  Qh4+ {[%clk 0:00:12]} 36. Kg1 {[%clk 0:00:11]}  Qf2+ {[%clk 0:00:12]} 37. Kh1 {[%clk 0:00:11]}  Ne3 {[%clk 0:00:13]} 38. Rg1 {[%clk 0:00:01]}  Qh4+ {[%clk 0:00:13]} 0-1


[Site "https://www.chess.com"]

[Event "Titled Tuesday Blitz May 23 Early 2023"]
[White "Kotepalli, Sai Nirupama"]
[Black "Jaivardhan Raj"]
[WhiteFideId "5039444"]
[BlackFideId "25744437"]
[WhiteElo "2377"]
[BlackElo "1772"]
[Result "0-1"]
[Round "07"]
[TimeControl "180+2"]
[Date "2023.05.23"]
[WhiteClock "0:00:00"]
[BlackClock "0:00:07"]

1. e4 {[%clk 0:02:57]}  c5 {[%clk 0:02:59]} 2. Nf3 {[%clk 0:02:54]}  e6 {[%clk 0:02:59]} 3. d3 {[%clk 0:02:53]}  Nc6 {[%clk 0:02:58]} 4. g3 {[%clk 0:02:51]}  a6 {[%clk 0:02:58]} 5. Bg2 {[%clk 0:02:51]}  Qc7 {[%clk 0:02:59]} 6. O-O {[%clk 0:02:49]}  Nf6 {[%clk 0:02:58]} 7. c3 {[%clk 0:02:49]}  d6 {[%clk 0:02:58]} 8. Qe2 {[%clk 0:02:47]}  Be7 {[%clk 0:02:57]} 9. d4 {[%clk 0:02:46]}  cxd4 {[%clk 0:02:54]} 10. cxd4 {[%clk 0:02:47]}  O-O {[%clk 0:02:54]} 11. Nc3 {[%clk 0:02:41]}  b5 {[%clk 0:02:52]} 12. e5 {[%clk 0:02:34]}  dxe5 {[%clk 0:02:50]} 13. dxe5 {[%clk 0:02:27]}  Nd7 {[%clk 0:02:46]} 14. Bf4 {[%clk 0:02:22]}  Bb7 {[%clk 0:02:43]} 15. Rac1 {[%clk 0:02:20]}  Rac8 {[%clk 0:02:38]} 16. Rfd1 {[%clk 0:02:12]}  Nc5 {[%clk 0:02:33]} 17. a3 {[%clk 0:02:07]}  Nb3 {[%clk 0:02:24]} 18. Rc2 {[%clk 0:02:01]}  Rfd8 {[%clk 0:02:20]} 19. Ne4 {[%clk 0:01:49]}  Rxd1+ {[%clk 0:02:03]} 20. Qxd1 {[%clk 0:01:47]}  Rd8 {[%clk 0:02:03]} 21. Qf1 {[%clk 0:01:40]}  Qb6 {[%clk 0:01:55]} 22. Nd6 {[%clk 0:01:34]}  Ba8 {[%clk 0:01:35]} 23. Rc3 {[%clk 0:01:15]}  Nba5 {[%clk 0:00:55]} 24. Qc1 {[%clk 0:01:01]}  b4 {[%clk 0:00:34]} 25. axb4 {[%clk 0:00:56]}  Nxb4 {[%clk 0:00:34]} 26. Rc8 {[%clk 0:00:52]}  Nd3 {[%clk 0:00:29]} 27. Rxd8+ {[%clk 0:00:47]}  Bxd8 {[%clk 0:00:28]} 28. Qc8 {[%clk 0:00:44]}  Bxf3 {[%clk 0:00:17]} 29. Be3 {[%clk 0:00:38]}  Qc7 {[%clk 0:00:12]} 30. Qxc7 {[%clk 0:00:33]}  Bxc7 {[%clk 0:00:12]} 31. Bxf3 {[%clk 0:00:33]}  Nxb2 {[%clk 0:00:13]} 32. Be2 {[%clk 0:00:24]}  Na4 {[%clk 0:00:12]} 33. Bxa6 {[%clk 0:00:22]}  Nc6 {[%clk 0:00:10]} 34. f4 {[%clk 0:00:21]}  Nc3 {[%clk 0:00:10]} 35. Kf1 {[%clk 0:00:19]}  Nd5 {[%clk 0:00:09]} 36. Bd2 {[%clk 0:00:18]}  f6 {[%clk 0:00:10]} 37. Bc8 {[%clk 0:00:17]}  Nd8 {[%clk 0:00:10]} 38. Nb5 {[%clk 0:00:16]}  fxe5 {[%clk 0:00:09]} 39. Nxc7 {[%clk 0:00:16]}  Nxc7 {[%clk 0:00:10]} 40. Ba5 {[%clk 0:00:15]}  Nd5 {[%clk 0:00:06]} 41. Bxd8 {[%clk 0:00:13]}  Ne3+ {[%clk 0:00:07]} 42. Ke2 {[%clk 0:00:13]}  exf4 {[%clk 0:00:07]} 43. Bxe6+ {[%clk 0:00:12]}  Kf8 {[%clk 0:00:07]} 44. gxf4 {[%clk 0:00:12]}  Ng2 {[%clk 0:00:07]} 45. Kf3 {[%clk 0:00:12]}  Ne1+ {[%clk 0:00:07]} 46. Ke4 {[%clk 0:00:12]}  Ke8 {[%clk 0:00:07]} 47. Bb6 {[%clk 0:00:07]}  Nc2 {[%clk 0:00:07]} 48. Kd3 {[%clk 0:00:01]}  Nb4+ {[%clk 0:00:07]} 49. Kc4 {[%clk 0:00:01]}  Nc6 {[%clk 0:00:07]} 50. Bd5 {[%clk 0:00:01]}  Ne7 {[%clk 0:00:07]} 51. Kb5 {[%clk 0:00:02]}  Nxd5 {[%clk 0:00:07]} 52. Kc6 {[%clk 0:00:03]}  Nxf4 {[%clk 0:00:07]} 53. Bc5 {[%clk 0:00:04]}  Ne6 {[%clk 0:00:07]} 54. Bd6 {[%clk 0:00:04]}  Ng5 {[%clk 0:00:07]} 55. h4 {[%clk 0:00:03]}  Nf3 {[%clk 0:00:07]} 56. h5 {[%clk 0:00:04]}  Kf7 {[%clk 0:00:07]} 57. Kd7 {[%clk 0:00:04]}  Ng5 {[%clk 0:00:06]} 58. h6 {[%clk 0:00:04]}  gxh6 {[%clk 0:00:05]} 59. Bf4 {[%clk 0:00:04]}  Kg6 {[%clk 0:00:05]} 60. Kd6 {[%clk 0:00:04]}  Kf5 {[%clk 0:00:05]} 61. Bh2 {[%clk 0:00:04]}  h5 {[%clk 0:00:06]} 62. Kd5 {[%clk 0:00:04]}  Nf3 {[%clk 0:00:06]} 63. Bg3 {[%clk 0:00:03]}  h4 {[%clk 0:00:06]} 64. Bb8 {[%clk 0:00:02]}  h3 {[%clk 0:00:07]} 65. Kc4 {[%clk 0:00:00]}  h2 {[%clk 0:00:07]} 0-1


[Site "https://www.chess.com"]